[Event "FRA-chT Top 12 2019"]
[Site "Brest"]
[Date "2019.05.28"]
[Round "11.4"]
[White "Marcelin, Cyril"]
[Black "Libiszewski, Fabien"]
[Result "1/2-1/2"]
[ECO "D10"]
[WhiteElo "2451"]
[BlackElo "2511"]
[Annotator "RC"]
[PlyCount "21"]
[EventDate "2019.05.18"]
[EventType "team-tourn"]
[EventCountry "FRA"]
[SourceTitle "playchess.com"]
[Source "ChessBase"]
[SourceQuality "1"]
[TimeControl "40/5400+30:1800+30"]

1. d4 {[%emt 0:00:17]} d5 {[%emt 0:00:00]} 2. c4 {[%emt 0:00:20]} c6 {[%emt 0:00:18]} 3. cxd5 {[%emt 0:00:22]} cxd5 {[%emt 0:00:10]} 4. Nc3 {[%emt 0:00:27]} Nf6 {[%emt 0:00:36]} 5. Nf3 {[%emt 0:00:43]} Nc6 {[%emt 0:00:34]} 6. Bf4 {[%emt 0:00:26]} e6 {[%emt 0:01:01]} 7. Rc1 {[%emt 0:10:37]} Bd6 {[%emt 0:01:52]} 8. Bxd6 {[%emt 0:01:40]} Qxd6 {[%emt 0:00:07]} 9. e3 {[%emt 0:00:22]} O-O {[%emt 0:00:58]} 10. Bd3 {[%emt 0:00:38]} Bd7 {[%emt 0:01:11]} 11. O-O {[%emt 0:00:18]} 1/2-1/2

[Event "FRA-chT Top 12 2019"]
[Site "Brest"]
[Date "2019.05.28"]
[Round "11.6"]
[White "Maze, Sebastien"]
[Black "Burri, Quentin"]
[Result "1-0"]
[ECO "B51"]
[WhiteElo "2579"]
[BlackElo "2425"]
[Annotator "RC"]
[PlyCount "105"]
[EventDate "2019.05.18"]
[EventType "team-tourn"]
[EventCountry "FRA"]
[SourceTitle "playchess.com"]
[Source "ChessBase"]
[SourceQuality "1"]
[TimeControl "40/5400+30:1800+30"]

1. e4 {[%emt 0:00:00]} c5 {[%emt 0:00:00]} 2. Nf3 {[%emt 0:00:00]} d6 {[%emt 0:00:00]} 3. Bb5+ {[%emt 0:00:00]} Nd7 {[%emt 0:00:00]} 4. Ba4 {[%emt 0:00:00]} Ngf6 {[%emt 0:08:05]} 5. O-O {[%emt 0:00:33]} a6 {[%emt 0:03:49]} 6. c4 {[%emt 0:01:15]} g6 {[%emt 0:06:31]} 7. Nc3 {[%emt 0:00:07]} Bg7 {[%emt 0:00:18]} 8. d3 {[%emt 0:00:07]} O-O {[%emt 0:02:13]} 9. h3 {[%emt 0:00:03]} b6 {[%emt 0:04:11]} 10. Bg5 {[%emt 0:00:31]} Bb7 {[%emt 0:01:28]} 11. Rb1 {[%emt 0:00:06]} h6 {[%emt 0:05:07]} 12. Be3 {[%emt 0:00:04]} e6 {[%emt 0:01:37]} 13. Qd2 {[%emt 0:00:42]} Kh7 {[%emt 0:00:19]} 14. b4 {[%emt 0:00:32]} Qc7 {[%emt 0:00:38]} 15. Rfc1 {[%emt 0:04:28]} Rfd8 {[%emt 0:03:02]} 16. a3 {[%emt 0:07:45]} Rac8 {[%emt 0:10:57]} 17. Rb3 {[%emt 0:02:55]} Ba8 {[%emt 0:05:59]} 18. Rcb1 {[%emt 0:06:03]} cxb4 {[%emt 0:10:49]} 19. Rxb4 {[%emt 0:01:47]} d5 {[%emt 0:07:14]} 20. exd5 {[%emt 0:05:59]} exd5 {[%emt 0:00:25]} 21. Bxd7 {[%emt 0:03:01]} Nxd7 {[%emt 0:00:38]} 22. Nxd5 {[%emt 0:02:53]} Bxd5 {[%emt 0:01:05]} 23. cxd5 {[%emt 0:00:09]} Bc3 {[%emt 0:00:20]} 24. Qa2 {[%emt 0:00:52]} Bxb4 {[%emt 0:03:10]} 25. d6 {[%emt 0:00:10]} Bxd6 {[%emt 0:00:11]} 26. Qxf7+ {[%emt 0:00:07]} Kh8 {[%emt 0:00:00]} 27. Bd4+ {[%emt 0:02:07]} Ne5 {[%emt 0:02:18]} 28. Nxe5 {[%emt 0:00:10]} Bxe5 {[%emt 0:00:26]} 29. Qxc7 {[%emt 0:00:06]} Rxc7 {[%emt 0:00:09]} 30. Bxe5+ {[%emt 0:00:03]} Rg7 {[%emt 0:00:04]} 31. Rxb6 {[%emt 0:00:11]} Kh7 {[%emt 0:00:25]} 32. Bxg7 {[%emt 0:00:05]} Kxg7 {[%emt 0:00:03]} 33. Rxa6 {[%emt 0:00:05]} Rxd3 {[%emt 0:00:05]} 34. h4 {[%emt 0:00:12]} h5 {[%emt 0:01:46]} 35. g3 {[%emt 0:00:10]} Rb3 {[%emt 0:00:30]} 36. Ra7+ {[%emt 0:01:33]} Kf6 {[%emt 0:00:19]} 37. Kg2 {[%emt 0:01:00]} Rc3 {[%emt 0:00:34]} 38. a4 {[%emt 0:00:10]} Ra3 {[%emt 0:00:05]} 39. Ra8 {[%emt 0:00:14]} Kf7 {[%emt 0:01:29]} 40. a5 {[%emt 0:00:09]} Kg7 {[%emt 0:00:08]} 41. a6 {[%emt 0:30:06]} Kf7 {[%emt 0:30:03]} 42. Kf1 {[%emt 0:00:56]} Ra2 {[%emt 0:00:40]} 43. Ke1 {[%emt 0:00:04]} Kg7 {[%emt 0:00:15]} 44. Kd1 {[%emt 0:13:16]} Rxf2 {[%emt 0:00:12]} 45. Kc1 {[%emt 0:00:23]} g5 {[%emt 0:08:46]} 46. Kb1 {[%emt 0:17:27]} gxh4 {[%emt 0:03:39]} 47. a7 {[%emt 0:01:57]} hxg3 {[%emt 0:02:17]} 48. Rg8+ {[%emt 0:02:25]} Kxg8 {[%emt 0:00:04]} 49. a8=Q+ {[%emt 0:00:04]} Kg7 {[%emt 0:03:08]} 50. Qd8 {[%emt 0:16:58]} g2 {[%emt 0:06:02]} 51. Qc7+ {[%emt 0:00:31]} Kh8 {[%emt 0:00:45]} 52. Qc3+ {[%emt 0:00:32]} Kh7 {[%emt 0:00:45]} 53. Qd3+ {[%emt 0:00:13]} 1-0